bitfinex/quotes_ETHUSD_20250220
["timestamp","ask_amount","ask_price","bid_price","bid_amount"]
[1740017160856,0.10320299,2726.3,2726.0,0.264]
[1740017161061,0.10320299,2726.3,2726.1,3.66812]
[1740017162320,0.10320299,2726.3,2726.0,0.264]
[1740017162767,0.10320299,2726.3,2726.0,3.93227]
[1740017162930,0.10320299,2726.3,2726.1,3.66816]
[1740017163130,0.10320299,2726.3,2726.2,3.6681]
[1740017165982,0.10320299,2726.3,2726.0,3.93236]
[1740017166184,0.10320299,2726.3,2726.2,3.6681]
[1740017166864,0.10320299,2726.3,2726.0,3.93236]
[1740017167426,0.10320299,2726.3,2726.0,7.60065]
[1740017167630,0.10320299,2726.3,2726.0,7.60058]
[1740017167843,0.10320299,2726.3,2726.1,3.66821]
[1740017168542,0.10320299,2726.3,2726.0,3.93229]
[1740017168742,0.10320299,2726.3,2726.0,7.60059]
[1740017169268,0.10320299,2726.3,2726.0,3.93229]
[1740017169467,0.10320299,2726.3,2726.0,7.60058]
[1740017169769,0.10320299,2726.3,2726.1,3.66824]
[1740017170068,0.10320299,2726.3,2726.2,3.6681]
[1740017173271,0.10320299,2726.3,2726.2,5.195933]
[1740017176556,1e-05,2726.3,2726.2,5.195933]
[1740017178287,1e-05,2726.3,2726.2,9.54162176]
[1740017178483,1e-05,2726.3,2726.2,10.09162176]
[1740017178779,1e-05,2726.3,2726.2,10.65310323]
[1740017178984,1e-05,2726.3,2726.2,10.09162176]
[1740017181253,1e-05,2726.3,2726.2,15.37162176]
[1740017181667,0.7986,2727.7,2727.5,3.66635]
[1740017181862,1.47246,2727.7,2727.5,3.66635]
[1740017182084,0.09248465,2727.6,2727.5,3.66635]
[1740017182975,0.7986,2727.7,2727.5,3.66635]
[1740017183483,0.0926583,2727.6,2727.5,3.66635]
[1740017183676,0.07982015,2727.6,2727.5,3.66635]
[1740017184393,0.07982015,2727.6,2727.5,6.43892917]
[1740017184564,0.55,2727.8,2727.5,8.60632809]
[1740017184763,0.55,2727.8,2727.7,3.66609]
[1740017185691,0.55,2727.8,2727.6,3.66622]
[1740017185872,0.55,2727.8,2727.7,3.66609]
[1740017186690,0.55,2727.8,2727.6,3.66614]
[1740017186991,0.55,2727.8,2727.7,0.73654515]
[1740017187502,0.55,2727.8,2727.7,4.40263515]
[1740017189396,0.55,2727.8,2727.5,1.37719892]
[1740017189597,0.55,2727.8,2727.4,3.66642]
[1740017189598,0.7873,2727.7,2727.4,3.66642]
[1740017189797,0.7873,2727.7,2727.2,4.66219465]
[1740017190115,0.7873,2727.7,2727.4,3.6664]
[1740017190691,0.7873,2727.7,2727.6,3.66622]
[1740017191197,0.55,2727.8,2727.7,3.66609]
[1740017191396,0.55,2727.8,2727.5,3.66636]
[1740017191612,0.55,2727.8,2727.5,3.66628]
[1740017192486,0.55,2727.8,2727.6,3.66621]
[1740017192787,0.55,2727.8,2727.5,3.66625]
[1740017192987,0.55,2727.8,2727.6,3.66619]
[1740017193191,0.55,2727.8,2727.5,3.66625]
[1740017193718,0.55,2727.8,2727.6,3.66619]
[1740017194513,0.55,2727.8,2727.5,3.66625]
[1740017194717,0.55,2727.8,2727.4,3.92942]
[1740017195019,0.55,2727.8,2727.5,3.66632]
[1740017195221,0.55,2727.8,2727.5,7.33258]
[1740017195425,0.55,2727.8,2727.5,3.66626]
[1740017195729,0.55,2727.8,2727.4,3.92947]
[1740017196185,0.55,2727.8,2727.5,3.66633]
[1740017196823,0.55,2727.8,2727.4,0.263]
[1740017197188,0.86001327,2727.7,2727.3,0.263]
[1740017197785,0.86001327,2727.7,2727.2,0.73250465]
[1740017198293,3.66639,2727.5,2726.8,0.8305]
[1740017198521,3.66639,2727.5,2726.9,3.66704]
[1740017198522,0.7669,2727.4,2726.9,3.66704]
[1740017198699,0.85974909,2727.4,2726.9,3.66704]
[1740017198899,0.85974909,2727.4,2726.9,4.426862]
[1740017199395,0.85974909,2727.4,2727.0,3.66703]
[1740017200912,0.85974909,2727.4,2727.0,3.66691]
[1740017201112,0.85974909,2727.4,2727.3,3.66663]
[1740017201312,0.09284909,2727.4,2727.3,3.66663]
[1740017201618,0.55,2727.8,2727.5,3.66628]
[1740017201824,0.09234331,2727.7,2727.5,3.66628]
[1740017202025,0.55,2727.8,2727.5,7.33253]
[1740017202327,0.09234331,2727.7,2727.6,3.66622]
[1740017202626,0.09234331,2727.7,2727.5,7.33251]
[1740017202786,0.55,2727.8,2727.5,4.75766892]
[1740017202991,0.09234331,2727.7,2727.5,4.75766892]
[1740017203214,0.55,2727.8,2727.5,4.75766892]
[1740017203420,0.09262263,2727.7,2727.5,4.75766892]
[1740017203662,0.55,2727.8,2727.5,4.75766892]
[1740017203991,0.55,2727.8,2727.7,3.66609]
[1740017205087,0.55,2727.8,2727.5,4.75766892]
[1740017205289,0.55,2727.8,2727.3,5.22536018]
[1740017205488,0.55,2727.8,2727.4,3.66648]
[1740017205911,0.55,2727.8,2727.4,0.263]
[1740017206230,4.4309,2727.7,2727.1,3.66684]
[1740017206923,0.7648,2727.7,2727.2,3.66668]
[1740017207294,3.66618,2727.7,2727.1,3.66684]
[1740017207529,0.7718,2727.6,2727.1,3.66684]
[1740017208332,0.7718,2727.6,2727.2,3.66674]
[1740017208748,0.7718,2727.6,2727.1,3.66684]
[1740017209244,0.7718,2727.6,2727.1,3.6668]
[1740017209447,0.7718,2727.6,2727.1,7.3336]
[1740017209755,0.7718,2727.6,2727.1,3.6668]
[1740017210291,0.7718,2727.6,2727.2,3.66672]
[1740017212136,0.09167531,2727.5,2727.2,3.66672]
[1740017212628,0.09167531,2727.5,2727.1,3.6668]
[1740017213333,0.7588,2727.4,2727.0,0.264]
[1740017213521,0.7588,2727.4,2727.0,3.93098]
[1740017213925,0.09167531,2727.3,2727.1,3.66683]
[1740017214230,0.09167531,2727.3,2727.1,3.66686]
[1740017215715,0.09167531,2727.3,2727.0,0.264]
[1740017215917,0.09167531,2727.3,2727.1,3.66688]
[1740017216311,0.09167531,2727.3,2727.0,0.264]
[1740017216730,0.09167531,2727.3,2727.0,3.93094]
[1740017217254,0.09167531,2727.3,2727.1,3.66689]
[1740017218840,0.09167531,2727.3,2727.1,3.66681]
[1740017219036,0.09167531,2727.3,2727.2,3.66676]
[1740017220241,0.09167531,2727.3,2727.2,4.426517]
[1740017220401,6.1573,2727.6,2727.2,4.426517]
[1740017220607,0.09073318,2727.5,2727.2,3.66676]
[1740017220808,0.09073318,2727.5,2727.4,3.66649]
[1740017221209,0.7697,2728.1,2727.7,3.666]
[1740017221542,0.09069543,2728.0,2727.8,0.263]
[1740017222242,0.09069543,2728.0,2727.8,3.92887]
[1740017222827,0.09069543,2728.0,2727.8,0.263]
[1740017225310,0.09069543,2728.0,2727.8,3.92893]
[1740017225745,0.09069543,2728.0,2727.8,0.263]
[1740017227212,0.09069543,2728.0,2727.9,3.66582]
[1740017227416,0.09069543,2728.0,2727.8,0.655897]
[1740017228618,0.09069543,2728.0,2727.8,4.321757]
[1740017229328,0.09069543,2728.0,2727.9,3.66582]
[1740017229651,0.005,2728.4,2728.3,3.66528]
[1740017229967,0.09651057,2728.4,2728.3,3.66528]
[1740017230335,0.005,2728.4,2728.3,3.66528]
[1740017231047,0.09671429,2728.4,2728.3,3.66528]
[1740017232555,0.09671429,2728.4,2728.3,4.40837065]
[1740017232848,0.09671429,2728.4,2728.3,5.59675986]
[1740017235066,0.09671429,2728.4,2728.3,1.93147986]
[1740017235231,0.09671429,2728.4,2728.3,1.00609065]
[1740017235432,0.09671429,2728.4,2728.3,4.67137065]
[1740017236857,0.09671429,2728.4,2728.3,1.00609065]
[1740017237063,0.09671429,2728.4,2728.3,4.67137065]
[1740017237267,0.09671429,2728.4,2728.3,1.00609065]
[1740017237764,0.09671429,2728.4,2728.3,0.263]
[1740017239866,0.09671429,2728.4,2728.2,0.263]
[1740017240268,0.09671429,2728.4,2728.2,0.76318623]
[1740017240759,0.09671429,2728.4,2728.2,4.42849623]
[1740017240964,0.09671429,2728.4,2728.2,0.76318623]
[1740017241734,0.09671429,2728.4,2728.2,4.42859623]
[1740017241954,0.09671429,2728.4,2728.2,0.76318623]
[1740017242470,0.09671429,2728.4,2728.3,0.54316387]
[1740017242964,0.09671429,2728.4,2728.3,4.20844387]
[1740017243766,0.09671429,2728.4,2728.3,4.98084387]
[1740017244560,0.005,2728.4,2728.3,4.98084387]
[1740017244769,0.09693304,2728.4,2728.3,4.98084387]
[1740017244978,0.005,2728.4,2728.3,8.53084387]
[1740017252790,0.005,2728.4,2728.3,7.98084387]
[1740017253147,0.005,2728.4,2728.3,8.24384387]
[1740017253354,0.005,2728.4,2728.3,7.98084387]
[1740017253556,0.005,2728.4,2728.3,8.24384387]
[1740017253783,0.09700093,2728.4,2728.3,8.24384387]
[1740017253991,0.005,2728.4,2728.3,8.24384387]
[1740017259791,0.005,2728.4,2728.3,8.79384387]
[1740017264202,0.005,2728.4,2728.3,8.02144387]
[1740017264694,0.005,2728.4,2728.3,7.47144387]
[1740017264903,0.005,2728.4,2728.3,6.92828]
[1740017267097,0.7698,2728.4,2728.2,3.66532]
[1740017267300,0.7698,2728.4,2728.3,3.92828]
[1740017267507,0.005,2728.4,2728.3,3.92828]
[1740017270178,0.005,2728.4,2728.3,4.72668]
[1740017270375,0.005,2728.4,2728.3,8.63915102]
[1740017271678,0.005,2728.4,2728.3,9.18915102]
[1740017272079,8.95e-06,2728.4,2728.3,17.24173019]
[1740017272276,0.1494066,2729.1,2728.3,16.44333019]
[1740017272476,0.1494066,2729.1,2729.0,3.66434]
[1740017272814,0.1494066,2729.1,2729.0,4.475232]
[1740017273194,0.1494066,2729.1,2729.0,8.025232]
[1740017273392,6.6e-06,2729.1,2729.0,13.305232]
[1740017273602,6.6e-06,2729.2,2729.1,7.45461]
[1740017273807,6.6e-06,2729.2,2729.1,9.77085212]
[1740017274194,6.6e-06,2729.2,2729.1,10.32085212]
[1740017275417,6.6e-06,2729.2,2729.1,11.06534277]
[1740017275622,6.6e-06,2729.2,2729.1,10.51534277]
[1740017276284,6.6e-06,2729.2,2729.1,9.72494277]
[1740017279088,6.6e-06,2729.2,2729.1,9.46194277]
[1740017279291,0.7667066,2729.2,2729.1,6.66421]
[1740017279597,0.7667066,2729.2,2729.1,6.92721]
[1740017280000,0.7667066,2729.2,2729.1,6.66421]
[1740017280497,0.85352173,2729.2,2729.1,6.66421]
[1740017280697,0.85352173,2729.2,2728.9,3.92743]
[1740017280698,0.85352173,2729.2,2728.9,4.39590814]
[1740017280903,0.85352173,2729.2,2728.9,3.66443]
[1740017281231,0.85352173,2729.2,2728.9,7.3288]
[1740017281399,0.85352173,2729.2,2728.9,3.66437]
[1740017283413,0.7694,2729.1,2728.8,3.66459]
[1740017283614,0.85589296,2729.1,2728.8,3.66459]
[1740017284835,0.85589296,2729.1,2728.9,3.66445]
[1740017285041,0.85589296,2729.1,2728.9,7.32885]
[1740017285213,0.85589296,2729.1,2728.9,3.6644]
[1740017287337,0.85589296,2729.1,2728.8,3.66449]
[1740017287638,0.85589296,2729.1,2728.7,3.92773]
[1740017287839,0.85589296,2729.1,2728.9,3.66439]
[1740017288239,0.85589296,2729.1,2728.9,7.32878]
[1740017288640,0.85589296,2729.1,2729.0,3.66434]
[1740017289237,0.85589296,2729.1,2728.8,3.6646]
[1740017290146,0.85589296,2729.1,2728.9,3.66442]
[1740017291908,0.85589296,2729.1,2728.8,3.6646]
[1740017293338,0.85589296,2729.1,2728.8,3.66452]
[1740017298569,0.7814,2729.0,2728.2,0.99459898]
[1740017298790,0.86290527,2729.0,2728.5,7.32981]
[1740017298986,0.86290527,2729.0,2728.5,3.66489]
[1740017300629,0.86290527,2729.0,2728.8,3.66461]
[1740017301232,0.86290527,2729.0,2728.6,7.32964]
[1740017301987,0.86290527,2729.0,2728.9,3.66448]
[1740017302131,0.08150527,2729.0,2728.9,3.66448]
[1740017303766,0.8104,2728.9,2728.7,3.66473]
[1740017304131,0.8104,2728.9,2728.8,3.66461]
[1740017304544,0.8235,2729.1,2728.9,3.66441]
[1740017304745,0.8235,2729.1,2728.8,3.66461]
[1740017305085,0.8235,2729.1,2728.9,3.66439]
[1740017306294,0.8235,2729.1,2728.8,3.66461]
[1740017306457,0.8235,2729.1,2728.7,3.66473]
[1740017307394,0.8235,2729.1,2728.6,3.92782]
[1740017307691,0.8235,2729.1,2728.6,7.59262]
[1740017307891,0.8235,2729.1,2728.7,3.66474]
[1740017308051,0.8235,2729.1,2728.6,3.9278]
[1740017308251,1.27225266,2729.1,2728.6,3.9278]
[1740017308494,0.8316,2729.0,2728.6,3.9278]
[1740017308857,0.8316,2729.0,2728.4,3.66506]
[1740017309084,0.8316,2729.0,2728.5,0.263]
[1740017309277,0.8316,2729.0,2728.6,3.66487]
[1740017311306,0.8316,2729.0,2728.6,7.32963]
[1740017311587,6.6e-06,2729.2,2728.6,3.66476]
[1740017311785,0.8004066,2729.2,2728.8,3.66458]
[1740017313868,0.8004066,2729.2,2728.6,3.66482]
[1740017314070,0.7608,2729.1,2728.6,3.66482]
[1740017314268,0.7608,2729.1,2728.7,3.66461]
[1740017314892,0.7608,2729.1,2728.8,3.66457]
[1740017315208,0.7608,2729.1,2728.9,3.6644]
[1740017316090,0.7608,2729.1,2728.8,3.66457]
[1740017316294,0.7608,2729.1,2728.7,0.8114]
[1740017316501,0.7608,2729.1,2728.6,3.66477]
[1740017316689,0.71974258,2729.1,2728.6,3.66477]
[1740017317015,0.85860062,2729.0,2728.6,3.66477]
[1740017317312,0.85860062,2729.0,2728.6,7.32956]
[1740017317908,0.85860062,2729.0,2728.6,3.66477]
[1740017320777,0.85860062,2729.0,2728.6,7.32956]
[1740017320978,0.85860062,2729.0,2728.6,3.66477]
[1740017321616,1.58812726,2729.0,2728.5,3.66498]
[1740017322416,1.58812726,2729.0,2728.4,3.92807]
[1740017322711,0.765,2728.9,2728.4,3.92807]
[1740017323108,0.0775598,2728.8,2728.4,3.66507]
[1740017324689,0.0775598,2728.8,2728.2,7.59365]
[1740017324690,0.8039,2728.7,2728.2,7.59365]
[1740017324884,0.8039,2728.7,2728.2,3.92832]
[1740017325114,0.8039,2728.5,2728.2,3.66532]
[1740017325303,0.8039,2728.5,2728.0,3.66565]
[1740017325613,0.07729589,2728.4,2728.0,3.66565]
[1740017325911,0.8039,2728.4,2728.1,3.66546]
[1740017326112,0.07729589,2728.3,2728.1,3.66546]
[1740017326913,0.07729589,2728.3,2728.0,3.66565]
[1740017328007,0.07729589,2728.3,2727.9,0.9928332]
[1740017328192,0.7915,2728.2,2728.0,3.66567]
[1740017328390,0.86856964,2728.2,2727.8,7.5947]
[1740017328590,0.86856964,2728.2,2727.8,5.07141]
[1740017330499,0.86856964,2728.2,2727.8,8.73729]
[1740017330705,0.86856964,2728.2,2727.8,5.07141]
[1740017331211,0.86856964,2728.2,2727.8,8.73729]
[1740017331416,0.86856964,2728.2,2727.8,5.07141]
[1740017331627,0.86856964,2728.2,2727.8,8.73728]
[1740017331825,0.86856964,2728.2,2727.8,3.66584]
[1740017332005,0.86856964,2728.2,2727.8,3.92884]
[1740017332210,0.86856964,2728.2,2727.9,3.66581]
[1740017333206,0.86856964,2728.2,2728.0,3.66567]
[1740017333807,0.86856964,2728.2,2727.8,3.92886]
[1740017334008,0.86856964,2728.2,2728.0,3.66558]
[1740017334209,0.86856964,2728.2,2727.9,3.66582]
[1740017334727,0.86856964,2728.2,2727.8,3.66587]
[1740017335309,0.86856964,2728.2,2727.7,4.6597401]
[1740017335510,0.86856964,2728.2,2727.9,3.66582]
[1740017336027,0.86856964,2728.2,2727.9,3.66574]
[1740017338638,0.86856964,2728.2,2727.7,5.50829411]
[1740017339131,0.86856964,2728.2,2727.9,3.66581]
[1740017340340,0.86856964,2728.2,2727.7,4.77754401]
[1740017340506,0.86856964,2728.2,2727.7,8.44353401]
[1740017340701,0.86856964,2728.2,2727.7,4.77753401]
[1740017342039,0.86856964,2728.2,2727.8,3.66587]
[1740017344459,0.7955,2728.1,2727.6,3.66622]
[1740017344637,1.34452609,2727.9,2727.6,3.66622]
[1740017344957,0.87126498,2728.0,2727.6,7.33236]
[1740017345157,0.7955,2728.0,2727.6,3.66614]
[1740017345331,0.07576498,2727.9,2727.6,3.66614]
[1740017346961,0.07576498,2727.9,2727.4,4.40793958]
[1740017347130,0.8205,2727.8,2727.4,4.67093958]
[1740017347465,0.07554616,2727.7,2727.4,8.33733958]
[1740017347629,0.8205,2727.8,2727.4,4.67089958]
[1740017347962,0.07554616,2727.6,2727.4,7.5958]
[1740017348121,0.8205,2727.8,2727.5,3.66633]
[1740017349162,0.8205,2727.8,2727.6,3.66622]
[1740017351359,0.8213,2728.0,2727.6,3.66622]
[1740017352448,0.8213,2728.0,2727.5,0.8167]
[1740017352758,5.39,2728.1,2727.9,3.66581]
[1740017354252,0.8191,2728.3,2727.9,3.66574]
[1740017355652,0.8191,2728.3,2727.9,0.7729]
[1740017355967,0.8191,2728.3,2728.0,3.66566]
[1740017356746,0.8191,2728.3,2727.9,0.7729]
[1740017356934,0.8191,2728.3,2727.9,4.43871]
[1740017358135,0.8191,2728.3,2727.7,4.44191]
[1740017358465,0.8191,2728.3,2727.8,3.66587]
[1740017358973,0.8191,2728.3,2727.9,3.66572]
[1740017359281,0.8191,2728.3,2727.9,7.33145]
[1740017359677,0.8191,2728.3,2727.9,3.66572]
[1740017360568,6.1509,2728.5,2728.2,3.66537]
[1740017360766,5.39,2728.5,2728.3,3.66523]
[1740017361236,5.39,2728.5,2728.2,3.66537]
[1740017361436,5.39,2728.5,2728.2,3.66533]
[1740017361634,5.39,2728.5,2728.2,7.33066]
[1740017361835,5.39,2728.5,2728.2,4.39552451]
[1740017362035,0.06842187,2728.4,2728.2,4.39552451]
[1740017362265,0.06842187,2728.4,2728.3,3.66528]
[1740017362931,0.06842187,2728.4,2728.3,4.55033045]
[1740017363969,5.39,2728.8,2728.5,3.66488]
[1740017364150,5.39,2728.8,2728.6,3.6648]
[1740017367174,0.7861,2729.1,2728.8,3.6646]
[1740017368181,0.7861,2729.1,2728.9,3.66447]
[1740017368376,6.6e-06,2729.2,2728.9,3.66447]
[1740017368575,6.6e-06,2729.2,2728.9,4.475971]
[1740017369158,6.6e-06,2729.2,2729.1,3.66421]
[1740017369358,6.6e-06,2729.2,2729.0,3.66434]
[1740017369950,0.8275,2729.1,2728.9,0.811501]
[1740017370452,0.8275,2729.1,2728.7,3.92771]
[1740017371261,0.8275,2729.1,2728.8,3.6646]
[1740017371582,0.8275,2729.1,2728.7,3.92771]
[1740017371779,0.8275,2729.1,2728.7,7.59238]
[1740017371983,0.8275,2729.1,2728.8,3.66459]
[1740017372173,0.8275,2729.1,2728.8,0.90940138]
[1740017372372,6.6e-06,2729.2,2728.9,3.66446]
[1740017373081,6.6e-06,2729.2,2729.0,3.66434]
[1740017374064,6.6e-06,2729.2,2729.0,4.46134]
[1740017376984,6.6e-06,2729.2,2729.0,0.797]
[1740017377165,0.06569212,2729.1,2729.0,4.99842614]
[1740017378489,0.06569212,2729.1,2729.0,0.53708614]
[1740017379685,0.06569212,2729.1,2728.9,3.66446]
[1740017380006,0.06569212,2729.1,2728.9,3.66438]
[1740017380200,0.06569212,2729.1,2728.9,7.32878]
[1740017380589,0.06569212,2729.1,2728.9,3.66438]
[1740017381106,0.06569212,2729.1,2728.9,7.32878]
[1740017381410,0.06569212,2729.1,2728.9,3.66438]
[1740017382501,0.06569212,2729.1,2729.0,3.66434]
[1740017382818,0.06569212,2729.1,2728.9,3.66438]
[1740017383008,0.06569212,2729.1,2728.8,3.92752]
[1740017383189,0.82589212,2729.1,2728.8,3.92752]
[1740017383395,0.82589212,2729.1,2728.8,0.263]
[1740017383583,0.82589212,2729.1,2728.7,3.92772]
[1740017383974,0.82589212,2729.1,2728.9,3.66446]
[1740017384121,0.06569212,2729.1,2729.0,4.46124]
[1740017385185,0.06569212,2729.1,2729.0,3.66434]
[1740017395396,0.06569212,2729.1,2728.9,3.66447]
[1740017395897,0.06569212,2729.1,2729.0,3.66434]
[1740017398296,6.6e-06,2729.2,2729.1,3.66421]
[1740017398605,0.06462872,2729.2,2729.1,3.66421]
[1740017399198,6.6e-06,2729.2,2729.1,3.66421]
[1740017399410,0.06462872,2729.2,2729.1,3.66421]
[1740017399610,6.6e-06,2729.2,2729.1,3.66421]
[1740017399809,6.6e-06,2729.2,2729.1,4.56692038]
[1740017403232,6.6e-06,2729.2,2729.1,7.56692038]
[1740017403435,6.6e-06,2729.2,2729.1,8.93052038]
[1740017403636,0.8189,2730.2,2730.0,3.6629]
[1740017404437,0.8189,2730.2,2729.9,3.66312]
[1740017404739,0.8189,2730.2,2729.7,0.263]
[1740017404932,0.8322,2730.0,2729.7,0.263]
[1740017405141,1.3429275,2729.9,2729.4,0.263]
[1740017405346,0.792,2729.8,2729.4,0.263]
[1740017406949,3.66338,2729.8,2729.4,0.263]
[1740017407124,0.87122663,2729.7,2729.4,0.263]
[1740017407445,0.87122663,2729.7,2729.4,3.92678]
[1740017407648,0.87122663,2729.7,2729.4,0.263]
[1740017409411,0.87122663,2729.7,2728.9,8.15842]
[1740017409617,0.87122663,2729.7,2729.0,3.263]
[1740017410154,0.87122663,2729.7,2729.1,3.66418]
[1740017411619,0.87122663,2729.7,2729.3,3.66384]
[1740017413454,0.87122663,2729.7,2729.3,7.32769]
[1740017413989,0.87122663,2729.7,2729.3,7.3277]
[1740017414259,0.87122663,2729.7,2729.3,3.66384]
[1740017415321,0.87122663,2729.7,2729.3,4.49234]
[1740017415523,0.87122663,2729.7,2729.4,3.66373]
[1740017415862,0.06552663,2729.7,2729.6,3.66354]
[1740017416027,5.39,2730.1,2729.7,3.6633]
[1740017416227,0.06545881,2730.0,2729.7,3.6633]
[1740017417064,0.06545881,2730.0,2729.9,3.66313]
[1740017418283,0.06545881,2730.0,2729.8,3.66323]
[1740017418447,0.06545881,2730.0,2729.6,3.66345]
[1740017418649,0.85975881,2730.0,2729.6,3.66345]
[1740017418862,0.85975881,2730.0,2729.6,4.62924655]
[1740017419047,0.85975881,2730.0,2729.6,8.29269655]
[1740017419245,0.85975881,2730.0,2729.7,3.66331]
[1740017419445,0.85975881,2730.0,2729.6,4.62924655]
[1740017420144,0.85975881,2730.0,2729.4,5.17891848]
[1740017420145,0.85975881,2730.0,2729.5,6.66366]
[1740017420755,0.85975881,2730.0,2729.6,3.66352]
[1740017421260,0.85975881,2730.0,2729.8,3.66327]
[1740017421967,0.06545881,2730.0,2729.9,3.66313]
[1740017422146,0.06545881,2730.0,2729.9,4.46883]
[1740017422484,0.06545881,2730.0,2729.9,5.28204]
[1740017423148,0.7878,2730.5,2730.2,3.66268]
[1740017423346,5.39,2730.8,2730.2,3.66268]
[1740017423549,0.06582806,2730.4,2730.2,3.66268]
[1740017423767,0.7968,2730.7,2730.2,3.66268]
[1740017424003,0.06591095,2730.3,2730.2,4.46388]
[1740017424160,6.1868,2730.8,2730.5,3.66225]
[1740017424671,0.06628765,2730.7,2730.5,3.66225]
[1740017424872,6.1868,2730.8,2730.5,3.66225]
[1740017425179,0.06628765,2730.6,2730.3,3.66252]
[1740017425388,6.1868,2730.8,2730.3,4.1821066]
[1740017425568,0.06628765,2730.5,2730.2,3.0]
[1740017425767,6.1868,2730.8,2730.2,3.0]
[1740017425989,0.06628765,2730.4,2730.2,3.0]
[1740017426189,6.1868,2730.8,2730.2,3.0]
[1740017426387,0.06628765,2730.3,2730.1,3.66276]
[1740017426575,4.4519,2730.7,2730.1,3.66276]
[1740017426775,0.06628765,2730.2,2730.1,3.66276]
[1740017426981,0.7898,2730.7,2730.1,3.66276]
[1740017427488,0.06628765,2730.6,2730.1,3.66276]
[1740017428166,0.7627,2730.5,2730.1,0.263]
[1740017428891,0.06628765,2730.4,2730.1,3.92584]
[1740017429671,0.06628765,2730.4,2730.1,0.263]
[1740017430259,0.06628765,2730.4,2729.9,3.92612]
[1740017430461,3.72884765,2730.4,2729.8,3.7879]
[1740017430766,0.7676,2730.3,2729.9,0.263]
[1740017430967,0.7676,2730.3,2729.9,3.66313]
[1740017431180,0.06651364,2730.2,2729.9,3.66313]
[1740017431693,0.7676,2730.3,2729.9,3.66313]
[1740017431694,0.06651364,2730.1,2729.9,3.66313]
[1740017431896,0.7676,2730.3,2729.9,3.66313]
[1740017432113,0.06640818,2730.0,2729.9,3.66313]
[1740017432281,0.7676,2730.3,2729.9,3.66313]
[1740017432594,0.10710163,2730.0,2729.9,3.66313]
[1740017432899,0.10701124,2730.0,2729.9,3.66313]
[1740017433062,0.7676,2730.3,2729.9,3.66313]
[1740017433396,0.10701124,2730.0,2729.9,3.66313]
[1740017433567,0.7676,2730.3,2729.9,3.66313]
[1740017433775,0.10701124,2730.0,2729.9,7.32615]
[1740017433969,0.7826,2730.6,2730.1,3.66285]
[1740017434574,4.44481,2730.6,2730.1,3.66285]
[1740017435196,0.7826,2730.6,2730.1,3.66285]
[1740017436316,4.44487,2730.6,2730.0,0.7711]
[1740017436603,6.07147476,2730.6,2730.0,4.43409]
[1740017436779,3.66234,2730.5,2730.0,0.7711]
[1740017436974,3.66234,2730.5,2729.9,3.66306]
[1740017437178,0.10701877,2730.4,2729.9,3.66306]
[1740017437374,0.10701877,2730.4,2730.1,3.66285]
[1740017437598,2.40920476,2730.6,2730.1,3.66285]
[1740017437780,0.10701877,2730.3,2730.1,3.66285]
[1740017437982,0.7826,2730.6,2730.1,3.66285]
[1740017438190,0.10701877,2730.2,2730.1,4.46035]
[1740017438375,6.2176,2730.8,2730.3,3.66251]
[1740017438788,6.2176,2730.8,2730.4,3.6624]
[1740017439703,6.2176,2730.8,2730.5,3.6623]
[1740017440266,6.2176,2730.8,2730.5,3.66224]
[1740017440469,0.8276,2730.8,2730.5,3.66224]
[1740017442004,0.7966,2731.0,2730.5,8.08849]
[1740017442190,0.7966,2731.2,2730.7,3.66206]
[1740017442392,0.7966,2731.2,2730.8,3.66191]
[1740017442568,0.7966,2731.2,2730.7,3.66206]
[1740017443184,0.7966,2731.2,2730.7,3.66197]
[1740017443512,0.7966,2731.2,2730.7,4.5337174]
[1740017443894,0.7966,2731.2,2730.8,3.6619]
[1740017444097,6.1434,2731.5,2731.0,3.66165]
[1740017444489,6.1434,2731.5,2731.2,3.66135]
[1740017444688,5.39,2731.5,2731.2,3.66135]
[1740017444891,5.39,2731.5,2731.1,3.66151]
[1740017445301,0.7534,2731.7,2731.4,3.6611]
[1740017445701,0.7534,2731.7,2731.5,3.66098]
[1740017446621,0.1494066,2731.8,2731.5,3.66098]
[1740017447517,0.1494066,2731.8,2731.5,3.66088]
[1740017447682,0.1494066,2731.8,2731.6,3.66085]
[1740017448078,0.1494066,2731.8,2731.7,3.66072]
[1740017448839,0.1494066,2731.8,2731.6,0.732173]
[1740017449204,0.1494066,2731.8,2731.6,4.393003]
[1740017449408,0.1494066,2731.8,2731.6,0.732173]
[1740017449606,0.1494066,2731.8,2731.5,0.7817]
[1740017449838,0.1494066,2731.8,2731.6,3.66084]
[1740017450594,0.1494066,2731.8,2731.7,3.66072]
[1740017450942,0.1494066,2731.8,2731.5,4.44258]
[1740017451144,0.1494066,2731.8,2731.5,3.66088]
[1740017451310,0.1494066,2731.8,2731.4,3.66107]
[1740017451515,0.1494066,2731.8,2731.4,1.663681]
[1740017451855,4.48086,2731.7,2731.1,1.598586]
[1740017452155,0.10948816,2731.6,2731.2,0.263]
[1740017452335,0.10948816,2731.6,2731.2,3.92428]
[1740017452494,0.10948816,2731.6,2731.2,7.58556]
[1740017452895,0.10948816,2731.6,2731.2,3.92428]
[1740017453750,0.10948816,2731.6,2731.2,7.32255]
[1740017454050,0.10948816,2731.6,2731.3,3.66118]
[1740017454241,0.10948816,2731.6,2731.2,4.7379036]
[1740017454548,0.10948816,2731.6,2731.2,3.92427]
[1740017454857,0.10948816,2731.6,2731.4,3.66102]
[1740017455152,0.1494066,2731.8,2731.4,3.66102]
[1740017455659,0.10911946,2731.7,2731.6,3.66074]
[1740017455842,0.1494066,2731.8,2731.6,4.026814]
[1740017456046,0.1494066,2731.8,2731.6,7.687554]
[1740017456047,0.10912698,2731.7,2731.6,7.687554]
[1740017456261,0.1494066,2731.8,2731.6,4.026814]
[1740017456445,0.1494066,2731.8,2731.7,3.66072]
[1740017457262,0.1494066,2731.8,2731.7,4.43142]
[1740017457448,0.1494066,2731.8,2731.7,5.2772434]
[1740017458776,0.1494066,2731.8,2731.7,1.6165234]